fUSD/lending_fUSD_20260525
["ID","MTS","AMOUNT","RATE_DAILY","PERIOD"]
[422946093,1779666644000,-500.0,0.00026999,7]
[422946094,1779666644000,-500.0,0.00026999,7]
[422946096,1779666644000,-500.0,0.00026999,7]
[422946095,1779666644000,-500.0,0.00026999,7]
[422946098,1779666644000,-500.0,0.00026999,7]
[422946100,1779666644000,-500.0,0.00026999,7]
[422946088,1779666644000,-500.0,0.00026999,7]
[422946083,1779666644000,-500.0,0.00026999,7]
[422946105,1779666644000,-500.0,0.00026999,7]
[422946101,1779666644000,-500.0,0.00026999,7]
[422946102,1779666644000,-630.84,0.00026999,7]
[422946103,1779666644000,-500.0,0.00026999,7]
[422946106,1779666644000,-150.0,0.00027,2]
[422946104,1779666644000,-572.01,0.00026999,7]
[422946108,1779666644000,-167.62,0.00027,2]
[422946107,1779666644000,-10136.41402662,0.00027,10]
[422946109,1779666644000,-318.12,0.00027,7]
[422946122,1779666644000,-18578.42837828,0.00027159,2]
[422946089,1779666644000,-500.0,0.00026999,7]
[422946126,1779666644000,-529.4,0.00027263,7]
[422946097,1779666644000,-500.0,0.00026999,7]
[422946084,1779666644000,-500.0,0.00026999,7]
[422946071,1779666644000,-500.0,0.00026999,7]
[422946086,1779666644000,-500.0,0.00026999,7]
[422946124,1779666644000,-2316.0,0.00027171,3]
[422946061,1779666644000,-500.0,0.00026999,7]
[422946064,1779666644000,-500.0,0.00026999,7]
[422946062,1779666644000,-500.0,0.00026999,7]
[422946065,1779666644000,-500.0,0.00026999,7]
[422946063,1779666644000,-500.0,0.00026999,7]
[422946066,1779666644000,-500.0,0.00026999,7]
[422946068,1779666644000,-500.0,0.00026999,7]
[422946067,1779666644000,-500.0,0.00026999,7]
[422946069,1779666644000,-500.0,0.00026999,7]
[422946070,1779666644000,-500.0,0.00026999,7]
[422946092,1779666644000,-500.0,0.00026999,7]
[422946072,1779666644000,-500.0,0.00026999,7]
[422946075,1779666644000,-500.0,0.00026999,7]
[422946076,1779666644000,-500.0,0.00026999,7]
[422946077,1779666644000,-500.0,0.00026999,7]
[422946074,1779666644000,-500.0,0.00026999,7]
[422946079,1779666644000,-500.0,0.00026999,7]
[422946078,1779666644000,-500.0,0.00026999,7]
[422946081,1779666644000,-500.0,0.00026999,7]
[422946082,1779666644000,-500.0,0.00026999,7]
[422946080,1779666644000,-500.0,0.00026999,7]
[422946091,1779666644000,-500.0,0.00026999,7]
[422946085,1779666644000,-500.0,0.00026999,7]
[422946073,1779666644000,-500.0,0.00026999,7]
[422946125,1779666644000,-500.0,0.00027185,10]
[422946127,1779666644000,-150.0,0.00027397,30]
[422946128,1779666644000,-1500.0,0.00027397,2]
[422946155,1779666644000,-209.358664,0.00027397,2]
[422946159,1779666644000,-151.0,0.00027397,2]
[422946158,1779666644000,-151.0,0.00027397,2]
[422946160,1779666644000,-151.0,0.00027397,2]
[422946164,1779666644000,-9715.2,0.00027397,10]
[422946162,1779666644000,-151.0,0.00027397,2]
[422946163,1779666644000,-166.705992,0.00027397,2]
[422946161,1779666644000,-151.0,0.00027397,2]
[422946165,1779666644000,-8096.0,0.00027397,10]
[422946168,1779666644000,-163.0,0.000274,3]
[422946167,1779666644000,-858.9,0.000274,7]
[422946170,1779666644000,-500.0,0.00027451,60]
[422946174,1779666644000,-2315.0,0.00027504,3]
[422946172,1779666644000,-163.0,0.00027491,3]
[422946178,1779666644000,-1276.99,0.0002755,30]
[422946169,1779666644000,-163.0,0.00027409,3]
[422946173,1779666644000,-208.0,0.000275,7]
[422946171,1779666644000,-700.0,0.00027451,60]
[422946175,1779666644000,-2316.0,0.00027504,3]
[422946177,1779666644000,-25739.13632781,0.00027544,7]
[422946179,1779666644000,-1085.45,0.0002755,30]
[422946176,1779666644000,-2316.0,0.00027504,3]
[422946180,1779666644000,-520.77,0.0002755,30]
[422946154,1779666644000,-209.358656,0.00027397,2]
[422946157,1779666644000,-151.0,0.00027397,2]
[422946166,1779666644000,-6910.81,0.000274,14]
[422946156,1779666644000,-151.0,0.00027397,2]
[422946129,1779666644000,-300.0,0.00027397,2]
[422946153,1779666644000,-209.358656,0.00027397,2]
[422946131,1779666644000,-151.0,0.00027397,2]
[422946130,1779666644000,-151.0,0.00027397,2]
[422946132,1779666644000,-151.0,0.00027397,2]
[422946133,1779666644000,-151.0,0.00027397,2]
[422946134,1779666644000,-175.69602,0.00027397,2]
[422946136,1779666644000,-209.358656,0.00027397,2]
[422946139,1779666644000,-209.358656,0.00027397,2]
[422946137,1779666644000,-209.358656,0.00027397,2]
[422946138,1779666644000,-209.358656,0.00027397,2]
[422946142,1779666644000,-209.358656,0.00027397,2]
[422946135,1779666644000,-1000.0,0.00027397,20]
[422946140,1779666644000,-209.358656,0.00027397,2]
[422946147,1779666644000,-209.358656,0.00027397,2]
[422946151,1779666644000,-209.358656,0.00027397,2]
[422946149,1779666644000,-209.358656,0.00027397,2]
[422946145,1779666644000,-209.358656,0.00027397,2]
[422946150,1779666644000,-209.358656,0.00027397,2]
[422946148,1779666644000,-209.358656,0.00027397,2]
[422946146,1779666644000,-209.358656,0.00027397,2]
[422946143,1779666644000,-209.358656,0.00027397,2]
[422946141,1779666644000,-209.358656,0.00027397,2]
[422946144,1779666644000,-209.358656,0.00027397,2]
[422946152,1779666644000,-209.358656,0.00027397,2]
[422946220,1779666645000,-393.0,0.00027914,2]
[422946221,1779666645000,-154.97,0.00027914,2]
[422946218,1779666645000,-4508.29546262,0.000279,2]
[422946223,1779666645000,-393.0,0.00027925,2]
[422946222,1779666645000,-154.51,0.00027914,2]
[422946214,1779666645000,-1276.99,0.00027892,30]
[422946217,1779666645000,-421.54288175,0.000279,2]
[422946215,1779666645000,-1085.45,0.00027892,30]
[422946213,1779666645000,-1589.0,0.00027889,3]
[422946216,1779666645000,-520.77,0.00027892,30]
[422946224,1779666645000,-393.0,0.00027926,2]
[422946219,1779666645000,-233.64010052,0.00027908,10]
[422946226,1779666645000,-393.0,0.00027939,2]
[422946236,1779666645000,-393.0,0.00027994,2]
[422946225,1779666645000,-393.0,0.00027928,2]
[422946233,1779666645000,-1000.0,0.0002797,2]
[422946231,1779666645000,-1000.0,0.0002797,2]
[422946232,1779666645000,-1000.0,0.0002797,2]
[422946234,1779666645000,-1000.0,0.0002797,2]
[422946230,1779666645000,-1000.0,0.0002797,2]
[422946228,1779666645000,-151.0,0.00027967,7]
[422946229,1779666645000,-1000.0,0.0002797,2]
[422946235,1779666645000,-150.0,0.00027973,2]
[422946238,1779666645000,-151.0,0.00027997,7]
[422946237,1779666645000,-151.0,0.00027997,7]
[422946239,1779666645000,-151.0,0.00027997,7]
[422946210,1779666645000,-1589.0,0.00027857,3]
[422946227,1779666645000,-393.0,0.00027953,2]
[422946206,1779666645000,-1589.0,0.00027825,3]
[422946185,1779666645000,-520.77,0.00027572,7]
[422946208,1779666645000,-171.68,0.0002784,7]
[422946181,1779666645000,-171.68,0.0002755,2]
[422946182,1779666645000,-2316.0,0.00027561,3]
[422946186,1779666645000,-2382.4559662,0.0002758,2]
[422946184,1779666645000,-1085.45,0.00027572,7]
[422946240,1779666645000,-151.0,0.00027997,7]
[422946188,1779666645000,-152.0,0.00027591,30]
[422946187,1779666645000,-1589.0,0.00027589,3]
[422946183,1779666645000,-1276.99,0.00027572,7]
[422946189,1779666645000,-941.0,0.00027605,3]
[422946190,1779666645000,-163.0,0.00027668,3]
[422946192,1779666645000,-2316.0,0.0002772,3]
[422946193,1779666645000,-2316.0,0.0002772,3]
[422946196,1779666645000,-1589.0,0.00027729,3]
[422946199,1779666645000,-520.77,0.00027732,2]
[422946198,1779666645000,-1085.45,0.00027732,2]
[422946195,1779666645000,-163.0,0.00027729,3]
[422946194,1779666645000,-1584.0,0.0002772,3]
[422946197,1779666645000,-1276.99,0.00027732,2]
[422946200,1779666645000,-393.0,0.00027737,2]
[422946202,1779666645000,-386.0,0.00027766,2]
[422946203,1779666645000,-393.0,0.0002778,2]
[422946204,1779666645000,-393.0,0.00027815,2]
[422946201,1779666645000,-163.0,0.00027748,3]
[422946205,1779666645000,-2316.0,0.00027824,3]
[422946211,1779666645000,-1000.0,0.0002787,2]
[422946209,1779666645000,-2316.0,0.00027857,3]
[422946207,1779666645000,-393.0,0.00027827,2]
[422946212,1779666645000,-393.0,0.00027879,2]
[422946242,1779666645000,-151.0,0.00027997,7]
[422946191,1779666645000,-1580.0,0.0002772,3]
[422946244,1779666645000,-151.0,0.00027997,7]
[422946275,1779666645000,-1589.0,0.00028131,3]
[422946277,1779666645000,-1589.0,0.00028177,3]
[422946279,1779666645000,-2316.0,0.00028201,3]
[422946281,1779666645000,-1276.99,0.00028213,2]
[422946282,1779666645000,-1085.45,0.00028213,2]
[422946280,1779666645000,-2316.0,0.00028209,3]
[422946284,1779666645000,-270.4,0.00028267,2]
[422946283,1779666645000,-520.77,0.00028213,2]
[422946278,1779666645000,-858.9,0.000282,7]
[422946285,1779666645000,-400.0,0.0002827,2]
[422946287,1779666645000,-318.12,0.000283,7]
[422946286,1779666645000,-700.0,0.00028273,60]
[422946289,1779666645000,-500.0,0.00028333,11]
[422946288,1779666645000,-150.0,0.00028311,30]
[422946295,1779666645000,-1276.99,0.00028373,30]
[422946290,1779666645000,-986.89192752,0.00028338,10]
[422946293,1779666645000,-2312.0,0.00028369,3]
[422946291,1779666645000,-2316.0,0.0002836,3]
[422946296,1779666645000,-1085.45,0.00028373,30]
[422946294,1779666645000,-400.0,0.0002837,2]
[422946292,1779666645000,-165.0,0.00028369,3]
[422946301,1779666645000,-6910.81,0.000285,14]
[422946302,1779666645000,-501.01,0.0002851,14]
[422946297,1779666645000,-520.77,0.00028373,30]
[422946300,1779666645000,-729.0,0.000285,2]
[422946298,1779666645000,-2316.0,0.00028451,3]
[422946243,1779666645000,-151.0,0.00027997,7]
[422946276,1779666645000,-794.00572942,0.0002817,2]
[422946273,1779666645000,-1589.0,0.00028106,3]
[422946299,1779666645000,-1588.0,0.00028464,3]
[422946268,1779666645000,-1589.0,0.00028049,3]
[422946274,1779666645000,-171.69,0.0002813,30]
[422946241,1779666645000,-151.0,0.00027997,7]
[422946247,1779666645000,-150.0,0.00027999,2]
[422946245,1779666645000,-150.0,0.00027999,2]
[422946249,1779666645000,-150.0,0.00027999,2]
[422946251,1779666645000,-6325322.38035937,0.00028,120]
[422946248,1779666645000,-12530.08583361,0.00027999,2]
[422946250,1779666645000,-1940.43660621,0.00027999,2]
[422946252,1779666645000,-6910.81,0.00028,14]
[422946254,1779666645000,-746.1,0.00028,120]
[422946255,1779666645000,-200.0,0.00028,2]
[422946256,1779666645000,-4116.08,0.00028,2]
[422946258,1779666645000,-1960.04,0.00028,2]
[422946257,1779666645000,-1804.83183366,0.00028,2]
[422946246,1779666645000,-3331.52140864,0.00027999,2]
[422946253,1779666645000,-1414.80822803,0.00028,2]
[422946259,1779666645000,-1215.22,0.00028,2]
[422946266,1779666645000,-2316.0,0.0002804,3]
[422946272,1779666645000,-520.77,0.00028053,7]
[422946269,1779666645000,-1589.0,0.00028049,3]
[422946267,1779666645000,-2316.0,0.0002804,3]
[422946271,1779666645000,-1085.45,0.00028053,7]
[422946265,1779666645000,-1589.0,0.0002804,3]
[422946262,1779666645000,-20000.0,0.00028,20]
[422946264,1779666645000,-1589.0,0.0002804,3]
[422946260,1779666645000,-671.86,0.00028,2]
[422946270,1779666645000,-1276.99,0.00028053,7]
[422946261,1779666645000,-250.0,0.00028,8]
[422946263,1779666645000,-163.0,0.0002804,3]
[422946343,1779666646000,-25000.0,0.00028769,7]
[422946337,1779666646000,-153.02159045,0.00028735,7]
[422946332,1779666646000,-310.54573394,0.00028713,7]
[422946339,1779666646000,-1038.65,0.00028745,2]
[422946336,1779666646000,-152.11241696,0.00028735,7]
[422946331,1779666646000,-277.15676067,0.00028713,7]
[422946333,1779666646000,-152.42014882,0.00028726,7]
[422946338,1779666646000,-25000.0,0.00028743,7]
[422946342,1779666646000,-500.0,0.00028769,30]
[422946335,1779666646000,-186.68576625,0.00028732,7]
[422946334,1779666646000,-171.8717024,0.00028726,7]
[422946347,1779666646000,-25000.0,0.00028796,7]
[422946344,1779666646000,-25000.0,0.00028778,7]
[422946346,1779666646000,-25000.0,0.00028787,7]
[422946345,1779666646000,-2316.0,0.00028784,3]
[422946348,1779666646000,-25000.0,0.00028804,7]
[422946349,1779666646000,-10000.0,0.00028809,2]
[422946351,1779666646000,-979.12401728,0.0002882,2]
[422946350,1779666646000,-25000.0,0.00028813,7]
[422946352,1779666646000,-2316.0,0.00028821,3]
[422946353,1779666646000,-2316.0,0.00028821,3]
[422946330,1779666646000,-225.48958234,0.00028713,7]
[422946355,1779666646000,-234.14869205,0.00028826,7]
[422946341,1779666646000,-25000.0,0.0002876,7]
[422946340,1779666646000,-25000.0,0.00028752,7]
[422946310,1779666646000,-4116.08,0.000286,2]
[422946329,1779666646000,-177.84047575,0.00028713,7]
[422946354,1779666646000,-25000.0,0.00028822,7]
[422946303,1779666646000,-1589.0,0.00028521,3]
[422946306,1779666646000,-1276.99,0.00028533,7]
[422946312,1779666646000,-1215.22,0.000286,2]
[422946313,1779666646000,-585.37019521,0.00028623,2]
[422946307,1779666646000,-1085.45,0.00028533,7]
[422946309,1779666646000,-500.0,0.00028596,30]
[422946308,1779666646000,-520.77,0.00028533,7]
[422946304,1779666646000,-1589.0,0.00028529,3]
[422946315,1779666646000,-1589.0,0.0002868,3]
[422946305,1779666646000,-2310.0,0.0002853,3]
[422946314,1779666646000,-1589.0,0.0002868,3]
[422946311,1779666646000,-1960.04,0.000286,2]
[422946317,1779666646000,-1589.0,0.0002868,3]
[422946319,1779666646000,-163.0,0.00028689,3]
[422946321,1779666646000,-1276.99,0.00028693,2]
[422946322,1779666646000,-1085.45,0.00028693,2]
[422946323,1779666646000,-520.77,0.00028693,2]
[422946320,1779666646000,-163.0,0.00028692,3]
[422946318,1779666646000,-500.0,0.00028682,30]
[422946327,1779666646000,-154.72225373,0.00028713,7]
[422946324,1779666646000,-233.06,0.000287,14]
[422946326,1779666646000,-305.00282452,0.00028713,7]
[422946328,1779666646000,-156.0951259,0.00028713,7]
[422946356,1779666646000,-25000.0,0.00028831,7]
[422946316,1779666646000,-230.0,0.0002868,3]
[422946357,1779666646000,-25000.0,0.0002884,7]
[422946386,1779666646000,-25000.0,0.0002891,7]
[422946389,1779666646000,-1090.0,0.00029,2]
[422946390,1779666646000,-700.0,0.00029,2]
[422946388,1779666646000,-400.0,0.0002897,2]
[422946391,1779666646000,-1100.0,0.00029,2]
[422946393,1779666646000,-6000.0,0.00029,120]
[422946392,1779666646000,-771368.17638124,0.00029,2]
[422946394,1779666646000,-458.38,0.00029,2]
[422946396,1779666646000,-800661.96034323,0.00029,2]
[422946395,1779666646000,-10000.0,0.00029,2]
[422946397,1779666646000,-650.0,0.00029,2]
[422946387,1779666646000,-25000.0,0.0002891,7]
[422946398,1779666646000,-314.0,0.00029,2]
[422946400,1779666646000,-2599.0,0.00029,2]
[422946402,1779666646000,-6910.81,0.00029,14]
[422946401,1779666646000,-1072.95519546,0.00029,2]
[422946403,1779666646000,-10000.0,0.00029,2]
[422946405,1779666646000,-10000.0,0.00029,2]
[422946404,1779666646000,-10000.0,0.00029,2]
[422946407,1779666646000,-503.97508657,0.00029,5]
[422946409,1779666646000,-5000.0,0.00029,2]
[422946406,1779666646000,-9520.0,0.00029,2]
[422946410,1779666646000,-5169.0,0.00029,2]
[422946361,1779666646000,-150.0,0.00028855,2]
[422946399,1779666646000,-250.0,0.00029,2]
[422946384,1779666646000,-25000.0,0.00028901,7]
[422946408,1779666646000,-4279.16689502,0.00029,2]
[422946379,1779666646000,-25000.0,0.00028892,7]
[422946385,1779666646000,-424.70769918,0.00028906,7]
[422946358,1779666646000,-25000.0,0.00028848,7]
[422946367,1779666646000,-25000.0,0.00028866,7]
[422946364,1779666646000,-1085.49,0.00028855,30]
[422946362,1779666646000,-1277.08,0.00028855,30]
[422946359,1779666646000,-150.0,0.00028855,2]
[422946360,1779666646000,-500.0,0.00028855,30]
[422946363,1779666646000,-520.8,0.00028855,30]
[422946369,1779666646000,-25000.0,0.00028875,7]
[422946368,1779666646000,-25000.0,0.00028875,7]
[422946366,1779666646000,-25000.0,0.00028866,7]
[422946370,1779666646000,-166.41916778,0.00028882,7]
[422946365,1779666646000,-25000.0,0.00028857,7]
[422946374,1779666646000,-25000.0,0.00028884,7]
[422946372,1779666646000,-150.1679196,0.00028882,7]
[422946382,1779666646000,-318.12,0.000289,7]
[422946381,1779666646000,-858.9,0.000289,7]
[422946378,1779666646000,-25000.0,0.00028892,7]
[422946383,1779666646000,-25000.0,0.00028901,7]
[422946377,1779666646000,-158.33459026,0.00028884,7]
[422946376,1779666646000,-150.81149485,0.00028884,7]
[422946371,1779666646000,-197.24569335,0.00028882,7]
[422946373,1779666646000,-150.85912944,0.00028882,2]
[422946375,1779666646000,-25000.0,0.00028884,7]
[422946380,1779666646000,-300.0,0.000289,10]
[422946435,1779666647000,-583.29735138,0.00029415,2]
[422946438,1779666647000,-1685.23529116,0.000295,38]
[422946446,1779666647000,-4543.97493105,0.000295,38]
[422946436,1779666647000,-500.0,0.00029481,12]
[422946440,1779666647000,-3758.97213547,0.000295,38]
[422946439,1779666647000,-1685.23529116,0.000295,38]
[422946441,1779666647000,-3758.97213547,0.000295,38]
[422946443,1779666647000,-4128.84671746,0.000295,38]
[422946444,1779666647000,-4151.47353321,0.000295,38]
[422946449,1779666647000,-4982.71441354,0.000295,38]
[422946442,1779666647000,-4128.84671746,0.000295,38]
[422946447,1779666647000,-4936.47632888,0.000295,38]
[422946448,1779666647000,-4936.47632888,0.000295,38]
[422946450,1779666647000,-346.26331318,0.000295,38]
[422946452,1779666647000,-879.54028418,0.000295,38]
[422946453,1779666647000,-550.74,0.000295,38]
[422946455,1779666647000,-2316.0,0.00029566,3]
[422946454,1779666647000,-3730.30688769,0.000295,38]
[422946437,1779666647000,-6910.81,0.000295,14]
[422946456,1779666647000,-3.86672622,0.0002958,3]
[422946445,1779666647000,-4151.47353321,0.000295,38]
[422946434,1779666647000,-150.0,0.00029372,2]
[422946423,1779666647000,-583.29735138,0.00029101,2]
[422946433,1779666647000,-1500.0,0.000293,7]
[422946459,1779666647000,-661.06116582,0.0002958,3]
[422946411,1779666647000,-529.4,0.00029,7]
[422946412,1779666647000,-500.0,0.00029,2]
[422946414,1779666647000,-156.0,0.00029,2]
[422946413,1779666647000,-156.0,0.00029,2]
[422946415,1779666647000,-156.0,0.00029,2]
[422946417,1779666647000,-500.0,0.00029095,60]
[422946416,1779666647000,-154.97,0.00029,7]
[422946418,1779666647000,-700.0,0.00029095,60]
[422946420,1779666647000,-1960.04,0.000291,2]
[422946421,1779666647000,-1215.22,0.000291,2]
[422946419,1779666647000,-4116.08,0.000291,2]
[422946424,1779666647000,-585.37019521,0.00029138,2]
[422946422,1779666647000,-172.56,0.000291,7]
[422946425,1779666647000,-225.39972379,0.0002914,2]
[422946426,1779666647000,-400.0,0.0002917,2]
[422946427,1779666647000,-585.37019521,0.00029187,2]
[422946428,1779666647000,-318.12,0.000292,7]
[422946430,1779666647000,-979.12401728,0.0002928,2]
[422946429,1779666647000,-150.0,0.00029224,30]
[422946431,1779666647000,-585.37019521,0.00029285,2]
[422946432,1779666647000,-2932.96823243,0.00029295,2]
[422946457,1779666647000,-382.74373811,0.0002958,3]
[422946451,1779666647000,-168.39055485,0.000295,38]
[422946461,1779666647000,-858.9,0.000296,7]
[422946485,1779666647000,-1960.04,0.000299,2]
[422946488,1779666647000,-151.0,0.00029905,30]
[422946489,1779666647000,-164.0,0.00029905,30]
[422946492,1779666647000,-152.0,0.00029905,30]
[422946491,1779666647000,-215.0,0.00029905,30]
[422946494,1779666647000,-160.0,0.00029908,30]
[422946493,1779666647000,-155.0,0.00029908,30]
[422946490,1779666647000,-156.0,0.00029905,30]
[422946496,1779666647000,-152.0,0.00029908,30]
[422946498,1779666647000,-158.0,0.00029908,30]
[422946495,1779666647000,-155.0,0.00029908,30]
[422946500,1779666647000,-700.0,0.00029917,60]
[422946499,1779666647000,-153.0,0.00029908,30]
[422946501,1779666647000,-163.0,0.00029931,3]
[422946505,1779666647000,-1005.35674929,0.0003,2]
[422946504,1779666647000,-152792.58742625,0.0003,20]
[422946503,1779666647000,-3958.0,0.0003,3]
[422946506,1779666647000,-317.09712093,0.0003,120]
[422946502,1779666647000,-1000.0,0.0003,2]
[422946507,1779666647000,-10599.77647005,0.0003,5]
[422946458,1779666647000,-1268.32836985,0.0002958,3]
[422946487,1779666647000,-153.0,0.00029905,30]
[422946486,1779666647000,-1215.22,0.000299,2]
[422946497,1779666647000,-186.0,0.00029908,30]
[422946484,1779666647000,-4116.08,0.000299,2]
[422946460,1779666647000,-1182.0,0.0002958,3]
[422946482,1779666647000,-9800.19,0.000299,2]
[422946462,1779666647000,-318.12,0.000296,7]
[422946464,1779666647000,-625.0,0.00029723,2]
[422946465,1779666647000,-667.991,0.00029723,2]
[422946466,1779666647000,-519.0,0.00029723,2]
[422946463,1779666647000,-585.37019521,0.00029613,2]
[422946467,1779666647000,-152.0,0.0002978,4]
[422946469,1779666647000,-253.60380435,0.000298,2]
[422946471,1779666647000,-253.60380435,0.000298,2]
[422946470,1779666647000,-253.60380435,0.000298,2]
[422946468,1779666647000,-5000.0,0.000298,7]
[422946472,1779666647000,-176.37455422,0.000298,2]
[422946483,1779666647000,-1960.04,0.000299,2]
[422946479,1779666647000,-6646.32,0.000299,2]
[422946480,1779666647000,-24500.49,0.000299,2]
[422946478,1779666647000,-3323.16,0.000299,2]
[422946476,1779666647000,-24781.2009116,0.0002985,7]
[422946481,1779666647000,-4900.1,0.000299,2]
[422946474,1779666647000,-176.3745542,0.000298,2]
[422946475,1779666647000,-251.43,0.00029831,30]
[422946473,1779666647000,-176.3745542,0.000298,2]
[422946477,1779666647000,-23262.14,0.000299,2]
[422946518,1779666648000,-10501.3,0.00030029,2]
[422946531,1779666648000,-164.69541647,0.00030078,7]
[422946532,1779666648000,-3634.94724665,0.0003008,7]
[422946522,1779666648000,-355.6809515,0.00030055,7]
[422946529,1779666648000,-304.22483391,0.00030078,7]
[422946527,1779666648000,-343.7434048,0.00030069,7]
[422946526,1779666648000,-304.84029764,0.00030069,7]
[422946528,1779666648000,-373.37153251,0.00030075,7]
[422946525,1779666648000,-621.09146788,0.00030055,7]
[422946524,1779666648000,-554.31352135,0.00030055,7]
[422946523,1779666648000,-450.97916468,0.00030055,7]
[422946521,1779666648000,-312.1902518,0.00030055,7]
[422946509,1779666648000,-852.28217246,0.0003,10]
[422946519,1779666648000,-610.00564903,0.00030055,7]
[422946516,1779666648000,-4946.90268315,0.0003,5]
[422946517,1779666648000,-959.33333332,0.0003,2]
[422946515,1779666648000,-6910.81,0.0003,14]
[422946513,1779666648000,-2000.0,0.0003,14]
[422946514,1779666648000,-6007.46279613,0.0003,3]
[422946511,1779666648000,-725.02688317,0.0003,120]
[422946512,1779666648000,-173.30022602,0.0003,6]
[422946510,1779666648000,-250.0,0.0003,7]
[422946508,1779666648000,-586.68649388,0.0003,4]
[422946533,1779666648000,-5802.2453,0.000301,120]
[422946520,1779666648000,-309.44450745,0.00030055,7]
[422946530,1779666648000,-306.04318091,0.00030078,7]
[422946549,1779666648000,-177.4,0.00024658,2]
[422946536,1779666648000,-36813.28979568,0.0003013,7]
[422946560,1779666648000,-881.0,0.00014898,2]
[422946558,1779666648000,-181.328613,0.000147,2]
[422946559,1779666648000,-93.81903115,0.00014898,2]
[422946557,1779666648000,-6033.4084774,0.0003013,7]
[422946556,1779666648000,-177.4,0.00026829,30]
[422946534,1779666648000,-437.37849,0.000301,120]
[422946551,1779666648000,-197.11,0.0002755,2]
[422946555,1779666648000,-1713.08386424,0.0003013,7]
[422946553,1779666648000,-197.12,0.0002813,30]
[422946554,1779666648000,-294569.81457178,0.0003013,7]
[422946550,1779666648000,-177.4,0.00025743,7]
[422946548,1779666648000,-270.4,0.00016437,2]
[422946552,1779666648000,-197.11,0.0002784,7]
[422946545,1779666648000,-1396.69,0.00014898,2]
[422946546,1779666648000,-1396.69,0.00014898,2]
[422946535,1779666648000,-150.43047332,0.000301,120]
[422946538,1779666648000,-425.22336954,0.0003013,7]
[422946539,1779666648000,-2619.26681935,0.0003013,7]
[422946540,1779666648000,-1334.88,0.00013877,2]
[422946537,1779666648000,-534.27969911,0.0003013,7]
[422946541,1779666648000,-1396.69,0.00014898,2]
[422946544,1779666648000,-1396.69,0.00014898,2]
[422946543,1779666648000,-1396.69,0.00014898,2]
[422946547,1779666648000,-158.438951,0.00015,2]
[422946542,1779666648000,-1396.69,0.00014898,2]
[422946570,1779666649000,-1396.69,0.00014898,2]
[422946569,1779666649000,-1396.69,0.00014898,2]
[422946576,1779666649000,-1396.69,0.00014998,2]
[422946571,1779666649000,-1396.69,0.00014898,2]
[422946568,1779666649000,-1207.42192356,0.00014898,2]
[422946562,1779666649000,-759.08207644,0.00014898,2]
[422946566,1779666649000,-1734.61950838,0.00014733,2]
[422946564,1779666649000,-356.73792356,0.00014898,2]
[422946565,1779666649000,-189.26807644,0.00014898,2]
[422946563,1779666649000,-280.87,0.00014898,2]
[422946561,1779666649000,-421.87096885,0.00014898,2]
[422946572,1779666649000,-1396.69,0.00014898,2]
[422946574,1779666649000,-1396.69,0.00014898,2]
[422946567,1779666649000,-265.38049162,0.00014733,2]
[422946575,1779666649000,-1396.69,0.00014898,2]
[422946587,1779666649000,-177.41,0.00029,7]
[422946588,1779666649000,-28312.54122441,0.0003013,7]